fUSD/lending_fUSD_20251122
["ID","MTS","AMOUNT","RATE_DAILY","PERIOD"]
[394639037,1763806253506,-500.0,0.00016438,2]
[394639038,1763806253515,-1130.33,0.00016438,2]
[394639039,1763806253526,-500.0,0.00016438,2]
[394639040,1763806253535,-500.0,0.00016438,2]
[394639041,1763806253545,-500.0,0.00016438,2]
[394639042,1763806253554,-2544.87,0.00016438,2]
[394639043,1763806253564,-804.3,0.00016438,2]
[394639044,1763806253573,-674.23,0.00016438,2]
[394639045,1763806253583,-1191.45,0.00016438,2]
[394639046,1763806253592,-500.0,0.00016438,2]
[394639047,1763806253602,-585.41,0.00016438,2]
[394639048,1763806253612,-500.0,0.00016438,2]
[394639049,1763806253622,-500.0,0.00016438,2]
[394639050,1763806253631,-500.0,0.00016438,2]
[394639051,1763806253642,-500.0,0.00016438,2]
[394639052,1763806253652,-839.14,0.00016438,2]
[394639053,1763806253662,-500.0,0.00016438,2]
[394639054,1763806253672,-159.74732196,0.00016438,2]
[394639055,1763806253682,-564.02,0.00016438,2]
[394639056,1763806253692,-505.12,0.00016438,2]
[394639057,1763806253701,-559.83,0.00016438,2]
[394639058,1763806253713,-500.0,0.00016438,2]
[394639059,1763806253727,-500.0,0.00016438,2]
[394639060,1763806253737,-500.0,0.00016438,2]
[394639061,1763806253748,-500.0,0.00016438,2]
[394639062,1763806253759,-500.0,0.00016438,2]
[394639063,1763806253839,-1055.95,0.00016438,2]
[394639064,1763806253849,-1463.02,0.00016438,2]
[394639065,1763806253859,-500.0,0.00016438,2]
[394639066,1763806253869,-521.42,0.00016438,2]
[394639067,1763806253879,-733.24,0.00016438,2]
[394639068,1763806253891,-500.0,0.00016438,2]
[394639069,1763806253900,-782.33,0.00016438,2]
[394639070,1763806253910,-500.0,0.00016438,2]
[394639071,1763806253920,-500.0,0.00016438,2]
[394639072,1763806253930,-500.0,0.00016438,2]
[394639073,1763806253939,-551.26360831,0.00016438,2]
[394639074,1763806253949,-734.36,0.00016438,2]
[394639075,1763806253958,-500.0,0.00016438,2]
[394639076,1763806253968,-500.0,0.00016438,2]
[394639077,1763806253978,-500.0,0.00016438,2]
[394639078,1763806253988,-500.0,0.00016438,2]
[394639079,1763806253997,-500.0,0.00016438,2]
[394639080,1763806254008,-500.0,0.00016438,2]
[394639081,1763806254018,-839.69,0.00016438,2]
[394639082,1763806254028,-500.0,0.00016438,2]
[394639083,1763806254038,-500.0,0.00016438,2]
[394639084,1763806254048,-1249.82,0.00016438,2]
[394639085,1763806254058,-1049.8,0.00016438,2]
[394639086,1763806254067,-169.69475747,0.00016438,2]
[394639087,1763806254076,-500.0,0.00016438,2]
[394639088,1763806254086,-500.0,0.00016438,2]
[394639089,1763806254095,-523.31,0.00016438,2]
[394639090,1763806254106,-1579.91,0.00016438,2]
[394639091,1763806254115,-364.31486953,0.00016438,2]
[394639092,1763806254125,-500.0,0.00016438,2]
[394639093,1763806254135,-500.0,0.00016438,2]
[394639094,1763806254144,-500.0,0.00016438,2]
[394639095,1763806254153,-500.0,0.00016438,2]
[394639096,1763806254162,-500.0,0.00016438,2]
[394639097,1763806254171,-500.0,0.00016438,2]
[394639098,1763806254180,-532.69,0.00016438,2]
[394639099,1763806254190,-570.72,0.00016438,2]
[394639100,1763806254199,-150.0,0.00016438,2]
[394639101,1763806254208,-500.0,0.00016438,2]
[394639102,1763806254218,-515.86,0.00016438,2]
[394639103,1763806254227,-500.0,0.00016438,2]
[394639104,1763806254236,-1073.42,0.00016438,2]
[394639105,1763806254246,-203.52471131,0.00016438,2]
[394639106,1763806254255,-1688.87,0.00016438,2]
[394639107,1763806254264,-500.0,0.00016438,2]
[394639108,1763806254280,-500.0,0.00016438,2]
[394639109,1763806254290,-602.73,0.00016438,2]
[394639110,1763806254300,-786.03,0.00016438,2]
[394639111,1763806254309,-500.0,0.00016438,2]
[394639112,1763806254318,-500.0,0.00016438,2]
[394639113,1763806254327,-500.0,0.00016438,2]
[394639114,1763806254335,-500.0,0.00016438,2]
[394639115,1763806254344,-1309.89,0.00016438,2]
[394639116,1763806254353,-500.0,0.00016438,2]
[394639117,1763806254363,-651.0,0.00016438,2]
[394639118,1763806254372,-500.0,0.00016438,2]
[394639119,1763806254381,-500.0,0.00016438,2]
[394639120,1763806254390,-500.0,0.00016438,2]
[394639121,1763806254399,-919.35,0.00016438,2]
[394639122,1763806254407,-500.0,0.00016438,2]
[394639123,1763806254416,-500.0,0.00016438,2]
[394639124,1763806254424,-523.55,0.00016438,2]
[394639125,1763806254433,-606.55,0.00016438,2]
[394639126,1763806254442,-325.124804,0.00016438,2]
[394639127,1763806254450,-816.25,0.00016438,2]
[394639128,1763806254459,-500.0,0.00016438,2]
[394639129,1763806254467,-500.0,0.00016438,2]
[394639130,1763806254476,-500.0,0.00016438,2]
[394639131,1763806254484,-500.0,0.00016438,2]
[394639132,1763806254493,-500.0,0.00016438,2]
[394639133,1763806254502,-500.0,0.00016438,2]
[394639134,1763806254510,-500.0,0.00016438,2]
[394639135,1763806254519,-150.0,0.00016438,2]
[394639136,1763806254528,-500.0,0.00016438,2]
[394639137,1763806254537,-1202.89,0.00016438,2]
[394639138,1763806254545,-505.67482942,0.00016438,2]
[394639139,1763806254554,-696.52,0.00016438,2]
[394639140,1763806254562,-500.0,0.00016438,2]
[394639141,1763806254571,-501.25527172,0.00016438,2]
[394639142,1763806254581,-532.1,0.00016438,2]
[394639143,1763806254590,-500.0,0.00016438,2]
[394639144,1763806254599,-1008.12,0.00016438,2]
[394639145,1763806254608,-771.55,0.00016438,2]
[394639146,1763806254617,-150.0,0.00016438,2]
[394639147,1763806254627,-500.0,0.00016438,2]
[394639148,1763806254636,-500.0,0.00016438,2]
[394639149,1763806254645,-682.29,0.00016438,2]
[394639150,1763806254654,-597.76,0.00016438,2]
[394639151,1763806254662,-168.76166191,0.00016438,2]
[394639152,1763806254671,-2185.15,0.00016438,2]
[394639153,1763806254680,-500.0,0.00016438,2]
[394639154,1763806254689,-500.0,0.00016438,2]
[394639155,1763806254698,-500.0,0.00016438,2]
[394639156,1763806254708,-500.0,0.00016438,2]
[394639157,1763806254718,-500.0,0.00016438,2]
[394639158,1763806254730,-500.0,0.00016438,2]
[394639159,1763806254739,-500.0,0.00016438,2]
[394639160,1763806254748,-500.0,0.00016438,2]
[394639161,1763806254757,-935.0,0.00016438,2]
[394639162,1763806254768,-500.0,0.00016438,2]
[394639163,1763806254777,-561.06,0.00016438,2]
[394639164,1763806254787,-313.64119125,0.00016438,2]
[394639165,1763806254798,-500.0,0.00016438,2]
[394639166,1763806254809,-558.65,0.00016438,2]
[394639167,1763806254818,-500.0,0.00016438,2]
[394639168,1763806254828,-1048.65,0.00016438,2]
[394639169,1763806254837,-500.0,0.00016438,2]
[394639170,1763806254846,-500.0,0.00016438,2]
[394639171,1763806254856,-500.0,0.00016438,2]
[394639172,1763806254865,-500.0,0.00016438,2]
[394639173,1763806254874,-500.0,0.00016438,2]
[394639174,1763806254884,-517.79,0.00016438,2]
[394639175,1763806254894,-500.0,0.00016438,2]
[394639176,1763806254903,-500.0,0.00016438,2]
[394639177,1763806254912,-500.0,0.00016438,2]
[394639178,1763806254920,-500.0,0.00016438,2]
[394639179,1763806254929,-500.0,0.00016438,2]
[394639180,1763806254938,-500.0,0.00016438,2]
[394639181,1763806254948,-500.0,0.00016438,2]
[394639182,1763806254956,-500.0,0.00016438,2]
[394639183,1763806254966,-500.0,0.00016438,2]
[394639184,1763806254975,-500.0,0.00016438,2]
[394639185,1763806254988,-1090.24,0.00016438,2]
[394639186,1763806255000,-776.75,0.00016438,2]
[394639187,1763806255010,-500.0,0.00016438,2]
[394639188,1763806255020,-595.92,0.00016438,2]
[394639189,1763806255030,-500.0,0.00016438,2]
[394639190,1763806255039,-500.0,0.00016438,2]
[394639191,1763806255049,-500.0,0.00016438,2]
[394639192,1763806255057,-299.3076381,0.00016438,2]
[394639193,1763806255067,-500.0,0.00016438,2]
[394639194,1763806255077,-500.0,0.00016438,2]
[394639195,1763806255087,-500.0,0.00016438,2]
[394639196,1763806255100,-500.0,0.00016438,2]
[394639197,1763806255111,-500.0,0.00016438,2]
[394639198,1763806255120,-500.0,0.00016438,2]
[394639199,1763806255129,-500.0,0.00016438,2]
[394639200,1763806255138,-500.0,0.00016438,2]
[394639201,1763806255147,-500.0,0.00016438,2]
[394639202,1763806255156,-2164.02,0.00016438,2]
[394639203,1763806255165,-500.0,0.00016438,2]
[394639204,1763806255174,-500.0,0.00016438,2]
[394639205,1763806255183,-500.0,0.00016438,2]
[394639206,1763806255192,-597.17673974,0.00016438,2]
[394639207,1763806255202,-500.0,0.00016438,2]
[394639208,1763806255211,-500.0,0.00016438,2]
[394639209,1763806255221,-655.49,0.00016438,2]
[394639210,1763806255231,-500.0,0.00016438,2]
[394639211,1763806255241,-1677.03,0.00016438,2]
[394639212,1763806255249,-500.0,0.00016438,2]
[394639213,1763806255258,-7021.18,0.00016438,2]
[394639214,1763806255267,-696.44,0.00016438,2]
[394639215,1763806255275,-500.0,0.00016438,2]
[394639216,1763806255284,-786.49,0.00016438,2]
[394639217,1763806255293,-500.0,0.00016438,2]
[394639218,1763806255303,-500.0,0.00016438,2]
[394639219,1763806255312,-500.0,0.00016438,2]
[394639220,1763806255321,-1780.25,0.00016438,2]
[394639221,1763806255330,-702.43,0.00016438,2]
[394639222,1763806255339,-557.18,0.00016438,2]
[394639223,1763806255349,-987.68,0.00016438,2]
[394639224,1763806255359,-1070.85,0.00016438,2]
[394639225,1763806255368,-500.0,0.00016438,2]
[394639226,1763806255377,-672.12,0.00016438,2]
[394639227,1763806255386,-628.98,0.00016438,2]
[394639228,1763806255395,-276.8013119,0.00016438,2]
[394639229,1763806255404,-586.32,0.00016438,2]
[394639230,1763806255413,-500.0,0.00016438,2]
[394639231,1763806255423,-151.0,0.00016438,2]
[394639232,1763806255432,-151.0,0.00016438,2]
[394639233,1763806255441,-151.0,0.00016438,2]
[394639234,1763806255450,-299.761496,0.00016438,2]
[394639235,1763806255459,-500.0,0.00016438,2]
[394639236,1763806255468,-500.0,0.00016438,2]
[394639237,1763806255477,-500.0,0.00016438,2]
[394639238,1763806255488,-1078.17,0.00016438,2]
[394639239,1763806255500,-500.0,0.00016438,2]
[394639240,1763806255510,-500.0,0.00016438,2]
[394639241,1763806255519,-500.0,0.00016438,2]
[394639242,1763806255528,-500.0,0.00016438,2]
[394639243,1763806255537,-304.601654,0.00016438,2]
[394639244,1763806255547,-500.0,0.00016438,2]
[394639245,1763806255556,-304.601654,0.00016438,2]
[394639246,1763806255566,-304.601654,0.00016438,2]
[394639247,1763806255575,-194.76119973,0.00016438,2]
[394639248,1763806255585,-304.601654,0.00016438,2]
[394639249,1763806255593,-304.601654,0.00016438,2]
[394639250,1763806255602,-304.601654,0.00016438,2]
[394639251,1763806255612,-500.0,0.00016438,2]
[394639252,1763806255621,-304.601654,0.00016438,2]
[394639253,1763806255630,-304.601654,0.00016438,2]
[394639254,1763806255639,-557.34,0.00016438,2]
[394639255,1763806255648,-304.601654,0.00016438,2]
[394639256,1763806255658,-304.601654,0.00016438,2]
[394639257,1763806255667,-500.0,0.00016438,2]
[394639258,1763806255676,-304.601654,0.00016438,2]
[394639259,1763806255685,-304.601654,0.00016438,2]
[394639260,1763806255694,-304.601654,0.00016438,2]
[394639261,1763806255703,-500.0,0.00016438,2]
[394639262,1763806255712,-500.0,0.00016438,2]
[394639263,1763806255728,-500.0,0.00016438,2]
[394639264,1763806255737,-304.601654,0.00016438,2]
[394639265,1763806255747,-304.601654,0.00016438,2]
[394639266,1763806255757,-631.15,0.00016438,2]
[394639267,1763806255771,-1073.87,0.00016438,2]
[394639268,1763806255781,-304.601654,0.00016438,2]
[394639269,1763806255792,-304.601654,0.00016438,2]
[394639270,1763806255804,-304.601654,0.00016438,2]
[394639271,1763806255815,-304.601654,0.00016438,2]
[394639272,1763806255825,-304.601661,0.00016438,2]
[394639273,1763806255835,-503.62,0.00016438,2]
[394639274,1763806255845,-500.0,0.00016438,2]
[394639275,1763806255855,-500.0,0.00016438,2]
[394639276,1763806255868,-881.11,0.00016438,2]
[394639277,1763806255878,-500.0,0.00016438,2]
[394639278,1763806255888,-500.0,0.00016438,2]
[394639279,1763806255897,-5846.52,0.00016438,2]
[394639280,1763806255907,-729.49,0.00016438,2]
[394639281,1763806255917,-500.0,0.00016438,2]
[394639282,1763806255927,-166.39183317,0.00016438,2]
[394639283,1763806255937,-500.0,0.00016438,2]
[394639284,1763806255948,-500.0,0.00016438,2]
[394639285,1763806255959,-4450.71,0.00016438,2]
[394639286,1763806255969,-3727.77,0.00016438,2]
[394639287,1763806255978,-500.0,0.00016438,2]
[394639288,1763806255987,-377.11295136,0.00016438,2]
[394639289,1763806255997,-500.0,0.00016438,2]
[394639290,1763806256007,-500.0,0.00016438,2]
[394639291,1763806256017,-673.15,0.00016438,2]
[394639292,1763806256027,-867.82,0.00016438,2]
[394639293,1763806256037,-674.27,0.00016438,2]
[394639294,1763806256047,-500.0,0.00016438,2]
[394639295,1763806256056,-500.0,0.00016438,2]
[394639296,1763806256065,-500.0,0.00016438,2]
[394639297,1763806256075,-500.0,0.00016438,2]
[394639298,1763806256084,-500.0,0.00016438,2]
[394639299,1763806256094,-978.13,0.00016438,2]
[394639300,1763806256104,-1064.84,0.00016438,2]
[394639301,1763806256127,-500.0,0.00016438,2]
[394639302,1763806256148,-500.0,0.00016438,2]
[394639303,1763806256157,-188.48849308,0.00016438,2]
[394639304,1763806256167,-1344.66,0.00016438,2]
[394639305,1763806256176,-500.0,0.00016438,2]
[394639306,1763806256185,-531.28243621,0.00016438,2]
[394639307,1763806256195,-651.06,0.00016438,2]
[394639308,1763806256204,-500.0,0.00016438,2]
[394639309,1763806256213,-500.0,0.00016438,2]
[394639310,1763806256223,-835.55,0.00016438,2]
[394639311,1763806256232,-500.0,0.00016438,2]
[394639312,1763806256241,-500.0,0.00016438,2]
[394639313,1763806256250,-500.0,0.00016438,2]
[394639314,1763806256259,-776.5,0.00016438,2]
[394639315,1763806256268,-500.0,0.00016438,2]
[394639316,1763806256277,-567.01,0.00016438,2]
[394639317,1763806256286,-500.0,0.00016438,2]
[394639318,1763806256296,-150.0,0.00016438,2]
[394639319,1763806256306,-662.91,0.00016438,2]
[394639320,1763806256315,-150.0,0.00016438,2]
[394639321,1763806256324,-542.61287031,0.00016438,2]
[394639322,1763806256333,-500.0,0.00016438,2]
[394639323,1763806256343,-500.0,0.00016438,2]
[394639324,1763806256353,-765.48,0.00016438,2]
[394639325,1763806256364,-500.0,0.00016438,2]
[394639326,1763806256373,-500.0,0.00016438,2]
[394639327,1763806256387,-150.0,0.00016438,2]
[394639328,1763806256398,-500.0,0.00016438,2]
[394639329,1763806256407,-577.58,0.00016438,2]
[394639330,1763806256418,-200.33616609,0.00016438,2]
[394639331,1763806256428,-469.0,0.00016438,2]
[394639332,1763806256437,-227.91603678,0.00016438,2]
[394639333,1763806256446,-182.13043215,0.00016438,2]
[394639334,1763806256456,-819.38,0.00016438,2]
[394639335,1763806256465,-500.0,0.00016438,2]
[394639336,1763806256474,-500.0,0.00016438,2]
[394639337,1763806256484,-553.0,0.00016438,2]
[394639338,1763806256493,-544.54093957,0.00016438,2]
[394639339,1763806256503,-500.0,0.00016438,2]
[394639340,1763806256512,-500.0,0.00016438,2]
[394639341,1763806256524,-994.62,0.00016438,2]
[394639342,1763806256533,-584.85,0.00016438,2]
[394639343,1763806256543,-2977.14,0.00016438,2]
[394639344,1763806256552,-500.0,0.00016438,2]
[394639345,1763806256561,-500.0,0.00016438,2]
[394639346,1763806256570,-500.0,0.00016438,2]
[394639347,1763806256580,-500.0,0.00016438,2]
[394639348,1763806256589,-785.63,0.00016438,2]
[394639349,1763806256599,-500.0,0.00016438,2]
[394639350,1763806256609,-924.21,0.00016438,2]
[394639351,1763806256618,-516.09,0.00016438,2]
[394639352,1763806256627,-600.0,0.00016438,2]
[394639353,1763806256636,-600.0,0.00016438,2]
[394639354,1763806256646,-2444.28,0.00016438,2]
[394639355,1763806256655,-151.0,0.00016438,2]
[394639356,1763806256666,-151.0,0.00016438,2]
[394639357,1763806256675,-151.0,0.00016438,2]
[394639358,1763806256684,-151.342601,0.00016438,2]
[394639359,1763806256693,-152.951576,0.00016438,2]
[394639360,1763806256703,-207.924161,0.00016438,2]
[394639361,1763806256712,-151.681309,0.00016438,2]
[394639362,1763806256722,-162.746586,0.00016438,2]
[394639363,1763806256734,-5538.48,0.00016438,2]
[394639364,1763806256743,-151.0,0.00016438,2]
[394639365,1763806256752,-151.000003,0.00016438,2]
[394639366,1763806256762,-157.08822,0.00016438,2]
[394639367,1763806256771,-151.0,0.00016438,2]
[394639368,1763806256780,-151.0,0.00016438,2]
[394639369,1763806256790,-151.0,0.00016438,2]
[394639370,1763806256809,-173.578124,0.00016438,2]
[394639371,1763806256820,-770.0301838,0.00016463,2]
[394639372,1763806256830,-159.903552,0.00016473,2]
[394639373,1763806256839,-159.903552,0.00016473,2]
[394639374,1763806256849,-159.903552,0.00016473,2]
[394639375,1763806256859,-169.0,0.00016473,2]
[394639376,1763806256869,-159.903552,0.00016473,2]
[394639377,1763806256879,-159.903552,0.00016473,2]
[394639378,1763806256888,-159.903552,0.00016473,2]
[394639379,1763806256900,-500.0,0.00016473,2]
[394639380,1763806256910,-500.0,0.00016473,2]
[394639381,1763806256920,-500.0,0.00016473,2]
[394639382,1763806256929,-500.0,0.00016473,2]
[394639383,1763806256938,-500.0,0.00016473,2]
[394639384,1763806256948,-159.903552,0.00016473,2]
[394639385,1763806256957,-758.47625791,0.00016479,2]
[394639386,1763806256967,-168.0,0.00016484,2]
[394639387,1763806256976,-168.0,0.00016488,2]
[394639388,1763806256986,-40000.0,0.000165,2]
[394639389,1763806256995,-554.24080951,0.00016512,2]
[394639390,1763806257005,-770.0301838,0.00016525,2]
[394639391,1763806257015,-168.0,0.00016532,2]
[394639392,1763806257025,-300.0,0.00016553,2]
[394639393,1763806257034,-2659.0,0.00016569,2]
[394639394,1763806257043,-561.0,0.00016569,2]
[394639395,1763806257052,-6497.0,0.00016569,2]
[394639396,1763806257061,-152.83400044,0.00016575,2]
[394639397,1763806257071,-150.0,0.00016575,2]
[394639398,1763806257088,-150.0,0.00016575,2]
[394639399,1763806257106,-150.0,0.00016575,2]
[394639400,1763806257116,-150.0,0.00016575,2]
[394639401,1763806257125,-150.0,0.00016575,2]
[394639402,1763806257134,-500.0,0.00016575,2]
[394639403,1763806257143,-150.0,0.00016575,2]
[394639404,1763806257152,-510.78900437,0.00016575,2]
[394639405,1763806257162,-500.0,0.00016575,2]
[394639406,1763806257173,-651.0,0.00016575,2]
[394639407,1763806257187,-500.0,0.00016575,2]
[394639408,1763806257196,-150.0,0.00016575,2]
[394639409,1763806257205,-150.0,0.00016575,2]
[394639410,1763806257214,-500.0,0.00016575,2]
[394639411,1763806257223,-500.0,0.00016575,2]
[394639412,1763806257232,-500.0,0.00016575,2]
[394639413,1763806257241,-500.0,0.00016575,2]
[394639414,1763806257250,-500.0,0.00016575,2]
[394639415,1763806257259,-150.0,0.00016575,2]
[394639416,1763806257269,-500.0,0.00016575,2]
[394639417,1763806257278,-469.0,0.00016575,2]
[394639418,1763806257288,-553.0,0.00016575,2]
[394639419,1763806257297,-2190.14597,0.0001658,2]
[394639420,1763806257306,-217.30260111,0.00016585,2]
[394639421,1763806257316,-168.0,0.00016586,2]
[394639422,1763806257325,-770.0301838,0.00016588,2]
[394639423,1763806257335,-300.0,0.00016597,2]
[394639424,1763806257344,-300.0,0.00016597,2]
[394639425,1763806257353,-300.0,0.00016597,2]
[394639426,1763806257363,-300.0,0.00016597,2]
[394639427,1763806257373,-300.0,0.00016597,2]
[394639428,1763806257382,-250.0,0.00016597,2]
[394639429,1763806257391,-44362.4116403,0.000166,2]
[394639430,1763806257400,-502.5967674,0.00016612,2]
[394639431,1763806257410,-758.47625791,0.0001662,2]
[394639432,1763806257420,-770.0301838,0.0001665,2]
[394639433,1763806257429,-554.24080951,0.00016685,2]
[394639434,1763806257439,-1066.92383856,0.00016711,5]
[394639435,1763806257448,-5099.0,0.00016712,2]
[394639436,1763806257457,-150.0,0.00016712,2]
[394639437,1763806257467,-165.67396154,0.00016712,2]
[394639438,1763806257476,-150.0,0.00016712,2]
[394639439,1763806257485,-150.0,0.00016712,2]
[394639440,1763806257495,-171.52206719,0.00016712,2]
[394639441,1763806257504,-500.0,0.00016712,2]
[394639442,1763806257514,-150.0,0.00016712,2]
[394639443,1763806257523,-500.0,0.00016712,2]
[394639444,1763806257533,-651.0,0.00016712,2]
[394639445,1763806257549,-500.0,0.00016712,2]
[394639446,1763806257558,-150.0,0.00016712,2]
[394639447,1763806257568,-150.0,0.00016712,2]
[394639448,1763806257577,-191.46661754,0.00016712,2]
[394639449,1763806257587,-500.0,0.00016712,2]
[394639450,1763806257596,-500.0,0.00016712,2]
[394639451,1763806257605,-500.0,0.00016712,2]
[394639452,1763806257616,-500.0,0.00016712,2]
[394639453,1763806257625,-295.27964616,0.00016712,2]
[394639454,1763806257635,-500.0,0.00016712,2]
[394639455,1763806257644,-469.0,0.00016712,2]
[394639456,1763806257654,-553.0,0.00016712,2]
[394639457,1763806257663,-631.47460592,0.00016712,2]
[394639458,1763806257673,-500.0,0.00016712,2]
[394639459,1763806257682,-500.0,0.00016712,2]
[394639460,1763806257691,-500.0,0.00016712,2]
[394639461,1763806257700,-500.0,0.00016712,2]
[394639462,1763806257710,-500.0,0.00016712,2]
[394639463,1763806257723,-505.05961919,0.00016712,2]
[394639464,1763806257733,-500.0,0.00016712,2]
[394639465,1763806257743,-500.0,0.00016712,2]
[394639466,1763806257752,-500.0,0.00016712,2]
[394639467,1763806257763,-603.75013167,0.00016712,2]
[394639468,1763806257773,-500.0,0.00016712,2]
[394639469,1763806257782,-500.0,0.00016712,2]
[394639470,1763806257793,-867.5,0.00016712,2]
[394639471,1763806257803,-500.0,0.00016712,2]
[394639472,1763806257813,-500.0,0.00016712,2]
[394639473,1763806257823,-500.0,0.00016712,2]
[394639474,1763806257832,-500.0,0.00016712,2]
[394639475,1763806257842,-500.0,0.00016712,2]
[394639476,1763806257851,-576.69643752,0.00016712,2]
[394639477,1763806257862,-643.22,0.00016712,2]
[394639478,1763806257871,-843.09,0.00016712,2]
[394639479,1763806257881,-664.19,0.00016712,2]
[394639480,1763806257891,-579.49,0.00016712,2]
[394639481,1763806257901,-944.02,0.00016712,2]
[394639482,1763806257915,-500.0,0.00016712,2]
[394639483,1763806257924,-500.0,0.00016712,2]
[394639484,1763806258139,-500.0,0.00016712,2]
[394639485,1763806258149,-781.7,0.00016712,2]
[394639486,1763806258161,-500.0,0.00016712,2]
[394639487,1763806258171,-500.0,0.00016712,2]
[394639488,1763806258181,-500.0,0.00016712,2]
[394639489,1763806258191,-500.0,0.00016712,2]
[394639490,1763806258201,-754.3,0.00016712,2]
[394639491,1763806258211,-500.0,0.00016712,2]
[394639492,1763806258221,-500.0,0.00016712,2]
[394639493,1763806258234,-500.0,0.00016712,2]
[394639494,1763806258243,-826.89,0.00016712,2]
[394639495,1763806258257,-500.0,0.00016712,2]
[394639496,1763806258267,-500.0,0.00016712,2]
[394639497,1763806258277,-760.07,0.00016712,2]
[394639498,1763806258287,-500.0,0.00016712,2]
[394639499,1763806258296,-660.25,0.00016712,2]
[394639500,1763806258305,-500.0,0.00016712,2]
[394639501,1763806258315,-500.0,0.00016712,2]
[394639502,1763806258325,-500.0,0.00016712,2]
[394639503,1763806258335,-500.0,0.00016712,2]
[394639504,1763806258344,-620.59,0.00016712,2]
[394639505,1763806258353,-718.76,0.00016712,2]
[394639506,1763806258364,-589.29,0.00016712,2]
[394639507,1763806258373,-500.0,0.00016712,2]
[394639508,1763806258383,-500.0,0.00016712,2]
[394639509,1763806258392,-523.48,0.00016712,2]
[394639510,1763806258402,-500.0,0.00016712,2]
[394639511,1763806258411,-500.0,0.00016712,2]
[394639512,1763806258421,-500.0,0.00016712,2]
[394639513,1763806258430,-500.0,0.00016712,2]
[394639514,1763806258441,-500.0,0.00016712,2]
[394639515,1763806258453,-1151.27,0.00016712,2]
[394639516,1763806258462,-539.63,0.00016712,2]
[394639517,1763806258472,-500.0,0.00016712,2]
[394639518,1763806258481,-547.13448753,0.00016712,2]
[394639519,1763806258491,-943.25,0.00016712,2]
[394639520,1763806258499,-500.0,0.00016712,2]
[394639521,1763806258509,-532.89,0.00016712,2]
[394639522,1763806258518,-500.0,0.00016712,2]
[394639523,1763806258528,-500.0,0.00016712,2]
[394639524,1763806258537,-717.92,0.00016712,2]
[394639525,1763806258547,-500.0,0.00016712,2]
[394639526,1763806258556,-392.86881744,0.00016712,2]
[394639527,1763806258571,-500.0,0.00016712,2]
[394639528,1763806258579,-500.0,0.00016712,2]
[394639529,1763806258589,-791.9,0.00016712,2]
[394639530,1763806258598,-500.0,0.00016712,2]
[394639531,1763806258607,-671.16,0.00016712,2]
[394639532,1763806258617,-513.69,0.00016712,2]
[394639533,1763806258627,-718.46,0.00016712,2]
[394639534,1763806258637,-903.01,0.00016712,2]
[394639535,1763806258647,-500.0,0.00016712,2]
[394639536,1763806258656,-500.0,0.00016712,2]